[Event "*** Titled Tuesday Blitz"]
[Site "Chess.com"]
[Date "2020.03.03"]
[Round "1"]
[White "platy3"]
[Black "SlavenPastar"]
[Result "1-0"]
[WhiteElo "2878"]
[BlackElo "2501"]
[TimeControl "180+1"]
[EndTime "9:07:06 PST"]
[Termination "platy3 won on time"]

1. e4 {[%clk 0:02:58]} 1... b6 {[%clk 0:02:59.3]} 2. d4 {[%clk 0:02:57.1]} 2...
Bb7 {[%clk 0:02:59.8]} 3. Bd3 {[%clk 0:02:57.6]} 3... e6 {[%clk 0:03:00.3]} 4.
Qe2 {[%clk 0:02:57.1]} 4... c5 {[%clk 0:03:00.4]} 5. dxc5 {[%clk 0:02:55.7]}
5... Bxc5 {[%clk 0:02:59.7]} 6. Nf3 {[%clk 0:02:55.9]} 6... Nf6 {[%clk
0:02:59.7]} 7. O-O {[%clk 0:02:55.3]} 7... d6 {[%clk 0:02:53.5]} 8. a3 {[%clk
0:02:54]} 8... a5 {[%clk 0:02:53.5]} 9. b3 {[%clk 0:02:46.1]} 9... O-O {[%clk
0:02:49.1]} 10. Bb2 {[%clk 0:02:45.6]} 10... Ba6 {[%clk 0:02:45.3]} 11. Nbd2
{[%clk 0:02:43]} 11... Bxd3 {[%clk 0:02:41.5]} 12. cxd3 {[%clk 0:02:42.6]} 12...
d5 {[%clk 0:02:37.6]} 13. e5 {[%clk 0:02:30.9]} 13... Nfd7 {[%clk 0:02:35.5]}
14. d4 {[%clk 0:02:31.3]} 14... Be7 {[%clk 0:02:34.8]} 15. Rfc1 {[%clk
0:02:31.2]} 15... Na6 {[%clk 0:02:29.2]} 16. Ne1 {[%clk 0:02:30.6]} 16... Rc8
{[%clk 0:02:25.8]} 17. Qxa6 {[%clk 0:02:29]} 17... Rxc1 {[%clk 0:02:15.3]} 18.
Rxc1 {[%clk 0:02:27.6]} 18... Qb8 {[%clk 0:02:15.9]} 19. Qb5 {[%clk 0:02:26.1]}
19... Rd8 {[%clk 0:02:15.6]} 20. Nd3 {[%clk 0:02:25.4]} 20... f6 {[%clk
0:02:13.1]} 21. Qc6 {[%clk 0:02:22]} 21... Kf7 {[%clk 0:02:12.5]} 22. exf6
{[%clk 0:02:17.8]} 22... gxf6 {[%clk 0:02:12.4]} 23. g3 {[%clk 0:02:13.4]} 23...
Bd6 {[%clk 0:02:11]} 24. Nf3 {[%clk 0:02:11.8]} 24... Nf8 {[%clk 0:01:55.6]} 25.
Qb5 {[%clk 0:02:08.4]} 25... Ng6 {[%clk 0:01:53.2]} 26. Rc6 {[%clk 0:02:08]}
26... Bc7 {[%clk 0:01:42.8]} 27. a4 {[%clk 0:02:07.3]} 27... Ne7 {[%clk
0:01:41.4]} 28. Rc1 {[%clk 0:02:06.5]} 28... Rg8 {[%clk 0:01:41]} 29. Ba3 {[%clk
0:01:43.7]} 29... Bxg3 {[%clk 0:01:36.3]} 30. hxg3 {[%clk 0:01:31.3]} 30...
Rxg3+ {[%clk 0:01:37.2]} 31. fxg3 {[%clk 0:01:31.5]} 31... Qxg3+ {[%clk
0:01:38.1]} 32. Kf1 {[%clk 0:01:32]} 32... Qxf3+ {[%clk 0:01:28.3]} 33. Nf2
{[%clk 0:01:14.7]} 33... Nf5 {[%clk 0:00:46]} 34. Qd7+ {[%clk 0:01:13.9]} 34...
Kg6 {[%clk 0:00:41.7]} 35. Qe8+ {[%clk 0:01:14]} 35... Kh6 {[%clk 0:00:24.3]}
36. Qxe6 {[%clk 0:01:06.2]} 36... Ne3+ {[%clk 0:00:18]} 37. Ke1 {[%clk
0:01:05.5]} 37... Ng2+ {[%clk 0:00:18.2]} 38. Kd2 {[%clk 0:01:04.3]} 38... Qxf2+
{[%clk 0:00:17.3]} 39. Qe2 {[%clk 0:00:58.7]} 39... Qxd4+ {[%clk 0:00:12.3]} 40.
Kc2 {[%clk 0:00:58.8]} 40... Ne3+ {[%clk 0:00:10]} 41. Kb1 {[%clk 0:00:58.2]}
41... Qe4+ {[%clk 0:00:09.3]} 42. Ka2 {[%clk 0:00:58.2]} 42... d4 {[%clk
0:00:04.1]} 43. Bb2 {[%clk 0:00:58.4]} 43... d3 {[%clk 0:00:01.3]} 44. Qd2
{[%clk 0:00:58.5]} 44... Kg6 {[%clk 0:00:01.7]} 45. Re1 {[%clk 0:00:58.1]} 1-0

[Event "*** Titled Tuesday Blitz"]
[Site "Chess.com"]
[Date "2020.03.03"]
[Round "1"]
[White "Saitama_Hero"]
[Black "Atakishiyev04"]
[Result "0-1"]
[WhiteElo "2274"]
[BlackElo "2660"]
[TimeControl "180+1"]
[EndTime "9:07:06 PST"]
[Termination "Atakishiyev04 won by resignation"]

1. b3 {[%clk 0:02:59.2]} 1... Nf6 {[%clk 0:02:59.4]} 2. Bb2 {[%clk 0:03:00]}
2... g6 {[%clk 0:02:58.3]} 3. Nf3 {[%clk 0:03:00.9]} 3... Bg7 {[%clk 0:02:58.1]}
4. e3 {[%clk 0:03:01.8]} 4... O-O {[%clk 0:02:58.2]} 5. c4 {[%clk 0:03:02.7]}
5... c5 {[%clk 0:02:56.8]} 6. Be2 {[%clk 0:03:02.1]} 6... Nc6 {[%clk 0:02:56.3]}
7. O-O {[%clk 0:03:02.2]} 7... d5 {[%clk 0:02:47.9]} 8. cxd5 {[%clk 0:03:01]}
8... Nxd5 {[%clk 0:02:47.6]} 9. Bxg7 {[%clk 0:03:00.3]} 9... Kxg7 {[%clk
0:02:48.2]} 10. Qc1 {[%clk 0:02:57.1]} 10... b6 {[%clk 0:02:42.4]} 11. d4 {[%clk
0:02:55.2]} 11... Bb7 {[%clk 0:02:29.9]} 12. dxc5 {[%clk 0:02:54.5]} 12... e6
{[%clk 0:02:29.3]} 13. Rd1 {[%clk 0:02:50.3]} 13... Qf6 {[%clk 0:02:28.9]} 14.
Nbd2 {[%clk 0:02:41.7]} 14... Nc3 {[%clk 0:02:16.8]} 15. Re1 {[%clk 0:02:41.5]}
15... Rfd8 {[%clk 0:02:13.7]} 16. cxb6 {[%clk 0:02:37.8]} 16... axb6 {[%clk
0:02:12.4]} 17. Bf1 {[%clk 0:02:36.9]} 17... Rac8 {[%clk 0:02:11.3]} 18. Kh1
{[%clk 0:02:22.9]} 18... Ne5 {[%clk 0:02:06.6]} 19. Nxe5 {[%clk 0:02:19.7]}
19... Qxe5 {[%clk 0:02:07.5]} 20. Nc4 {[%clk 0:02:17.6]} 20... Qf6 {[%clk
0:02:07.9]} 21. Qb2 {[%clk 0:02:12.2]} 21... b5 {[%clk 0:02:06.6]} 22. Na5
{[%clk 0:02:03.9]} 22... Be4 {[%clk 0:02:02]} 23. f3 {[%clk 0:02:02.2]} 23...
Ba8 {[%clk 0:01:57.2]} 24. Rac1 {[%clk 0:01:42.9]} 24... h5 {[%clk 0:01:52]} 25.
b4 {[%clk 0:01:41.8]} 25... h4 {[%clk 0:01:49.1]} 26. h3 {[%clk 0:01:41.3]}
26... Rc7 {[%clk 0:01:31.6]} 27. Nb3 {[%clk 0:01:41.2]} 27... Rdc8 {[%clk
0:01:32.1]} 28. Nc5 {[%clk 0:01:40.9]} 28... Na4 {[%clk 0:01:32.5]} 29. Qxf6+
{[%clk 0:01:28.8]} 29... Kxf6 {[%clk 0:01:33.4]} 30. Nb3 {[%clk 0:01:23.5]}
30... Bd5 {[%clk 0:01:20.5]} 31. Rxc7 {[%clk 0:01:19.6]} 31... Rxc7 {[%clk
0:01:19.5]} 32. Nd4 {[%clk 0:01:17.8]} 32... Nc3 {[%clk 0:01:12.9]} 33. Rc1
{[%clk 0:01:11.6]} 33... Bxa2 {[%clk 0:01:03.4]} 34. Rc2 {[%clk 0:00:54.6]}
34... Nd5 {[%clk 0:00:46]} 35. Rxc7 {[%clk 0:00:52.2]} 35... Nxc7 {[%clk
0:00:45.5]} 36. e4 {[%clk 0:00:48]} 36... Bc4 {[%clk 0:00:44.1]} 37. Bxc4 {[%clk
0:00:46.2]} 37... bxc4 {[%clk 0:00:45]} 38. Kg1 {[%clk 0:00:46.1]} 38... Ke5
{[%clk 0:00:41.9]} 39. Ne2 {[%clk 0:00:42.6]} 39... Nb5 {[%clk 0:00:40.3]} 40.
Kf2 {[%clk 0:00:42.7]} 40... Na3 {[%clk 0:00:27.9]} 41. Ke3 {[%clk 0:00:33.7]}
41... Nc2+ {[%clk 0:00:27.7]} 42. Kd2 {[%clk 0:00:34.6]} 42... Nxb4 {[%clk
0:00:27.6]} 43. Kc3 {[%clk 0:00:35.5]} 43... Nd3 {[%clk 0:00:27.6]} 44. Kxc4
{[%clk 0:00:35]} 44... Ne1 {[%clk 0:00:27.9]} 45. g4 {[%clk 0:00:28.6]} 45...
Nxf3 {[%clk 0:00:24.7]} 0-1

[Event "*** Titled Tuesday Blitz"]
[Site "Chess.com"]
[Date "2020.03.03"]
[Round "1"]
[White "ChristianAlm"]
[Black "afgano29"]
[Result "0-1"]
[WhiteElo "2347"]
[BlackElo "2713"]
[TimeControl "180+1"]
[EndTime "9:07:11 PST"]
[Termination "afgano29 won by resignation"]

1. d4 {[%clk 0:02:57.3]} 1... Nf6 {[%clk 0:02:58.5]} 2. Bg5 {[%clk 0:02:56.3]}
2... e6 {[%clk 0:02:56.7]} 3. e4 {[%clk 0:02:55.2]} 3... h6 {[%clk 0:02:54]} 4.
Bxf6 {[%clk 0:02:53.1]} 4... Qxf6 {[%clk 0:02:54.9]} 5. c3 {[%clk 0:02:54]} 5...
d5 {[%clk 0:02:53.9]} 6. Nd2 {[%clk 0:02:51.7]} 6... c5 {[%clk 0:02:52.7]} 7.
Ngf3 {[%clk 0:02:50.8]} 7... cxd4 {[%clk 0:02:51.1]} 8. Nxd4 {[%clk 0:02:45.9]}
8... Bc5 {[%clk 0:02:49.5]} 9. Bb5+ {[%clk 0:02:38.9]} 9... Bd7 {[%clk
0:02:47.6]} 10. Qa4 {[%clk 0:02:32.7]} 10... Bxd4 {[%clk 0:02:30.8]} 11. cxd4
{[%clk 0:02:29.1]} 11... Nc6 {[%clk 0:02:19.7]} 12. e5 {[%clk 0:02:19.7]} 12...
Qf4 {[%clk 0:02:14.6]} 13. Nf3 {[%clk 0:02:15.1]} 13... Qe4+ {[%clk 0:02:08.6]}
14. Kf1 {[%clk 0:02:03.6]} 14... O-O {[%clk 0:01:54.1]} 15. Re1 {[%clk
0:02:01.7]} 15... Qf5 {[%clk 0:01:44.4]} 16. Qd1 {[%clk 0:01:56.5]} 16... Nxe5
{[%clk 0:01:38.5]} 17. Nxe5 {[%clk 0:01:21.5]} 17... Bxb5+ {[%clk 0:01:36.1]}
18. Kg1 {[%clk 0:01:21.8]} 18... Rac8 {[%clk 0:01:33.9]} 19. a4 {[%clk
0:01:17.7]} 19... Ba6 {[%clk 0:01:30.9]} 20. b4 {[%clk 0:01:17]} 20... Bc4
{[%clk 0:01:24.2]} 21. h4 {[%clk 0:01:13.5]} 21... f6 {[%clk 0:01:12.8]} 22. g4
{[%clk 0:00:30.2]} 22... Qh7 {[%clk 0:01:12.3]} 23. Nd7 {[%clk 0:00:26.6]} 23...
Rfd8 {[%clk 0:01:07.2]} 24. Nc5 {[%clk 0:00:25]} 24... e5 {[%clk 0:00:57.3]} 25.
dxe5 {[%clk 0:00:23.5]} 25... fxe5 {[%clk 0:00:57.6]} 26. Rxe5 {[%clk
0:00:21.5]} 26... d4 {[%clk 0:00:57.6]} 27. Rh3 {[%clk 0:00:18.2]} 27... b6
{[%clk 0:00:56.3]} 28. Ne6 {[%clk 0:00:13.4]} 28... Bxe6 {[%clk 0:00:53.9]} 29.
Rxe6 {[%clk 0:00:13.6]} 29... d3 {[%clk 0:00:53.9]} 30. Kg2 {[%clk 0:00:11.3]}
30... d2 {[%clk 0:00:47.4]} 31. Rhe3 {[%clk 0:00:11.4]} 31... Qc2 {[%clk
0:00:41.4]} 32. Qe2 {[%clk 0:00:02.2]} 32... d1=Q {[%clk 0:00:38.8]} 33. Re8+
{[%clk 0:00:03.1]} 33... Rxe8 {[%clk 0:00:37.6]} 34. Rxe8+ {[%clk 0:00:04]}
34... Rxe8 {[%clk 0:00:38.1]} 35. Qxe8+ {[%clk 0:00:04.9]} 35... Kh7 {[%clk
0:00:38.8]} 0-1

[Event "*** Titled Tuesday Blitz"]
[Site "Chess.com"]
[Date "2020.03.03"]
[Round "1"]
[White "KNVB"]
[Black "Chessalary"]
[Result "0-1"]
[WhiteElo "2590"]
[BlackElo "2220"]
[TimeControl "180+1"]
[EndTime "9:07:11 PST"]
[Termination "Chessalary won on time"]

1. d4 {[%clk 0:03:00.9]} 1... d5 {[%clk 0:02:59.2]} 2. Bf4 {[%clk 0:03:01]} 2...
Nf6 {[%clk 0:02:58.8]} 3. e3 {[%clk 0:03:01]} 3... c5 {[%clk 0:02:58.2]} 4. Nf3
{[%clk 0:03:00.5]} 4... Nc6 {[%clk 0:02:58.4]} 5. c3 {[%clk 0:03:00]} 5... e6
{[%clk 0:02:52]} 6. Nbd2 {[%clk 0:02:59.8]} 6... Qb6 {[%clk 0:02:51.4]} 7. Qb3
{[%clk 0:02:58.7]} 7... c4 {[%clk 0:02:50.8]} 8. Qc2 {[%clk 0:02:59]} 8... Be7
{[%clk 0:02:50.9]} 9. b3 {[%clk 0:02:59.3]} 9... cxb3 {[%clk 0:02:48.8]} 10.
axb3 {[%clk 0:03:00.2]} 10... O-O {[%clk 0:02:48.9]} 11. h3 {[%clk 0:03:00.5]}
11... Bd7 {[%clk 0:02:48.4]} 12. Bd3 {[%clk 0:03:00.9]} 12... Rac8 {[%clk
0:02:47.6]} 13. Qb2 {[%clk 0:03:01.5]} 13... Na5 {[%clk 0:02:40.7]} 14. Rb1
{[%clk 0:02:20.8]} 14... Bb5 {[%clk 0:02:36.6]} 15. Bxb5 {[%clk 0:00:57.5]}
15... Qxb5 {[%clk 0:02:37.4]} 16. Ne5 {[%clk 0:00:58.4]} 16... Ne4 {[%clk
0:01:46.9]} 17. Nxe4 {[%clk 0:00:48.7]} 17... dxe4 {[%clk 0:01:47.4]} 18. c4
{[%clk 0:00:40.1]} 18... Qb4+ {[%clk 0:01:35.2]} 19. Ke2 {[%clk 0:00:33]} 19...
f6 {[%clk 0:01:26.5]} 20. Ng4 {[%clk 0:00:33.2]} 20... h5 {[%clk 0:01:24.9]} 21.
Nh2 {[%clk 0:00:33.6]} 21... g5 {[%clk 0:01:19]} 22. Qc2 {[%clk 0:00:23.3]}
22... gxf4 {[%clk 0:01:15.9]} 23. Qxe4 {[%clk 0:00:23.5]} 23... Nxb3 {[%clk
0:01:11]} 24. Qxe6+ {[%clk 0:00:04.1]} 24... Kg7 {[%clk 0:01:00.1]} 25. c5
{[%clk 0:00:05]} 25... Qb5+ {[%clk 0:00:41.3]} 26. Kf3 {[%clk 0:00:02.1]} 26...
Nd2+ {[%clk 0:00:40.8]} 27. Kxf4 {[%clk 0:00:01.9]} 27... Nxb1 {[%clk
0:00:35.2]} 28. g4 {[%clk 0:00:02.2]} 28... Rce8 {[%clk 0:00:24.5]} 29. Qf5
{[%clk 0:00:01.1]} 29... Bd8 {[%clk 0:00:19.3]} 0-1

[Event "*** Titled Tuesday Blitz"]
[Site "Chess.com"]
[Date "2020.03.03"]
[Round "1"]
[White "vladislavkovalev"]
[Black "Orest_Vovk"]
[Result "1-0"]
[WhiteElo "2880"]
[BlackElo "2505"]
[TimeControl "180+1"]
[EndTime "9:07:15 PST"]
[Termination "vladislavkovalev won by resignation"]

1. e4 {[%clk 0:03:00.6]} 1... Nc6 {[%clk 0:02:58.3]} 2. d4 {[%clk 0:03:00.1]}
2... e5 {[%clk 0:02:58.2]} 3. Nf3 {[%clk 0:02:56.9]} 3... Nxd4 {[%clk
0:02:56.6]} 4. Nxd4 {[%clk 0:02:56.3]} 4... exd4 {[%clk 0:02:57.5]} 5. Qxd4
{[%clk 0:02:57.2]} 5... Ne7 {[%clk 0:02:57.6]} 6. Nc3 {[%clk 0:02:52.9]} 6...
Nc6 {[%clk 0:02:57.4]} 7. Qd3 {[%clk 0:02:52.6]} 7... Bb4 {[%clk 0:02:57.1]} 8.
Bd2 {[%clk 0:02:52.9]} 8... d6 {[%clk 0:02:55.5]} 9. O-O-O {[%clk 0:02:53.2]}
9... Be6 {[%clk 0:02:51.6]} 10. Nd5 {[%clk 0:02:53.1]} 10... Bxd2+ {[%clk
0:02:50.3]} 11. Qxd2 {[%clk 0:02:54]} 11... O-O {[%clk 0:02:40.5]} 12. g3 {[%clk
0:02:53.4]} 12... Ne7 {[%clk 0:02:21.1]} 13. Nc3 {[%clk 0:02:41.2]} 13... Bg4
{[%clk 0:02:15.8]} 14. Be2 {[%clk 0:02:40.1]} 14... Bxe2 {[%clk 0:02:11.3]} 15.
Qxe2 {[%clk 0:02:41]} 15... Qe8 {[%clk 0:02:06.4]} 16. f4 {[%clk 0:02:40.1]}
16... Qc6 {[%clk 0:02:03.8]} 17. h4 {[%clk 0:02:39]} 17... Qa6 {[%clk
0:01:57.4]} 18. Qxa6 {[%clk 0:02:38.2]} 18... bxa6 {[%clk 0:01:57.4]} 19. Rhe1
{[%clk 0:02:38.6]} 19... f6 {[%clk 0:01:53.5]} 20. Rd4 {[%clk 0:02:34]} 20...
Rab8 {[%clk 0:01:41.6]} 21. Rc4 {[%clk 0:02:33.5]} 21... c5 {[%clk 0:01:27.2]}
22. Rd1 {[%clk 0:02:31.4]} 22... Rb4 {[%clk 0:01:14.2]} 23. Rxb4 {[%clk
0:02:29.1]} 23... cxb4 {[%clk 0:01:15.1]} 24. Nd5 {[%clk 0:02:29.8]} 24... Nxd5
{[%clk 0:01:14.6]} 25. Rxd5 {[%clk 0:02:30.7]} 25... Re8 {[%clk 0:01:09.3]} 26.
Rd4 {[%clk 0:02:24.3]} 26... a5 {[%clk 0:01:07.4]} 27. Kd2 {[%clk 0:02:24.7]}
27... Rd8 {[%clk 0:00:56.8]} 28. Rd5 {[%clk 0:02:24.1]} 28... a4 {[%clk
0:00:53]} 29. Ra5 {[%clk 0:02:23.5]} 29... b3 {[%clk 0:00:46.3]} 30. axb3 {[%clk
0:02:23.5]} 30... axb3 {[%clk 0:00:46.3]} 31. c4 {[%clk 0:02:23.4]} 31... Rd7
{[%clk 0:00:36.8]} 32. Rb5 {[%clk 0:02:21.3]} 32... Kf7 {[%clk 0:00:31]} 33.
Rxb3 {[%clk 0:02:21.4]} 33... Ke7 {[%clk 0:00:30.1]} 34. Ra3 {[%clk 0:02:18.2]}
34... Rb7 {[%clk 0:00:29.7]} 35. Kc3 {[%clk 0:02:18.6]} 35... Kd7 {[%clk
0:00:29.4]} 36. Ra6 {[%clk 0:02:18.7]} 36... Rc7 {[%clk 0:00:24.4]} 37. b4
{[%clk 0:02:18.7]} 37... Rb7 {[%clk 0:00:24.2]} 38. b5 {[%clk 0:02:19.1]} 38...
Rc7 {[%clk 0:00:24]} 39. Kd4 {[%clk 0:02:19.5]} 39... Ke7 {[%clk 0:00:18.9]} 40.
h5 {[%clk 0:02:20]} 40... g6 {[%clk 0:00:18.6]} 41. h6 {[%clk 0:02:18.6]} 41...
g5 {[%clk 0:00:18.4]} 42. Ra1 {[%clk 0:02:11.8]} 42... Ke6 {[%clk 0:00:15]} 43.
Ra6 {[%clk 0:02:01.7]} 43... Ke7 {[%clk 0:00:11.7]} 44. f5 {[%clk 0:01:59.6]}
44... Kd7 {[%clk 0:00:10.9]} 45. c5 {[%clk 0:01:50.6]} 45... dxc5+ {[%clk
0:00:10.1]} 46. Kc4 {[%clk 0:01:51.1]} 46... Ke7 {[%clk 0:00:09.9]} 47. Re6+
{[%clk 0:01:51.5]} 47... Kf7 {[%clk 0:00:09.3]} 48. g4 {[%clk 0:01:52]} 48...
Rc8 {[%clk 0:00:06.7]} 49. Rc6 {[%clk 0:01:49.2]} 49... Re8 {[%clk 0:00:02.8]}
50. Rc7+ {[%clk 0:01:49]} 50... Re7 {[%clk 0:00:02.1]} 51. Rxe7+ {[%clk
0:01:47.7]} 51... Kxe7 {[%clk 0:00:03]} 52. Kxc5 {[%clk 0:01:48.6]} 52... Kd7
{[%clk 0:00:03.3]} 53. Kd5 {[%clk 0:01:49.3]} 53... Ke7 {[%clk 0:00:03.5]} 54.
e5 {[%clk 0:01:49.9]} 54... fxe5 {[%clk 0:00:03.8]} 55. Kxe5 {[%clk 0:01:50.8]}
55... Kf7 {[%clk 0:00:04.5]} 56. Kd6 {[%clk 0:01:49]} 56... Kf6 {[%clk
0:00:04.6]} 57. Kd5 {[%clk 0:01:49.1]} 57... Kf7 {[%clk 0:00:04.7]} 58. Kc6
{[%clk 0:01:49.6]} 58... Kf6 {[%clk 0:00:04.8]} 59. Kb7 {[%clk 0:01:48.3]} 59...
Ke5 {[%clk 0:00:05.7]} 60. Kxa7 {[%clk 0:01:48.4]} 60... Kf4 {[%clk 0:00:06.6]}
61. f6 {[%clk 0:01:48.9]} 61... Kxg4 {[%clk 0:00:07.5]} 62. f7 {[%clk
0:01:49.8]} 62... Kh5 {[%clk 0:00:08.3]} 63. f8=Q {[%clk 0:01:50.4]} 63... Kg6
{[%clk 0:00:09.2]} 64. Qg7+ {[%clk 0:01:50.5]} 1-0

[Event "*** Titled Tuesday Blitz"]
[Site "Chess.com"]
[Date "2020.03.03"]
[Round "1"]
[White "Eraschenkov"]
[Black "davserr65"]
[Result "1-0"]
[WhiteElo "2568"]
[BlackElo "2027"]
[TimeControl "180+1"]
[EndTime "9:07:15 PST"]
[Termination "Eraschenkov won on time"]

1. e4 {[%clk 0:02:59.1]} 1... c5 {[%clk 0:02:59.6]} 2. Nf3 {[%clk 0:02:59]} 2...
d6 {[%clk 0:02:59.5]} 3. d4 {[%clk 0:02:58]} 3... Nf6 {[%clk 0:02:58.7]} 4. Nc3
{[%clk 0:02:50.1]} 4... cxd4 {[%clk 0:02:58.7]} 5. Nxd4 {[%clk 0:02:50.1]} 5...
a6 {[%clk 0:02:59.3]} 6. Be2 {[%clk 0:02:44.6]} 6... e5 {[%clk 0:02:58.8]} 7.
Nb3 {[%clk 0:02:42.3]} 7... Be7 {[%clk 0:02:59]} 8. Be3 {[%clk 0:02:37.4]} 8...
O-O {[%clk 0:02:57.4]} 9. a4 {[%clk 0:02:30.8]} 9... Nbd7 {[%clk 0:02:56.4]} 10.
a5 {[%clk 0:02:24.8]} 10... Qc7 {[%clk 0:02:55.7]} 11. O-O {[%clk 0:02:22.9]}
11... Nc5 {[%clk 0:02:44]} 12. Nxc5 {[%clk 0:02:06.5]} 12... dxc5 {[%clk
0:02:43.8]} 13. Bc4 {[%clk 0:02:00.3]} 13... Be6 {[%clk 0:02:22.4]} 14. Bxe6
{[%clk 0:01:43.3]} 14... fxe6 {[%clk 0:02:22.3]} 15. Qe2 {[%clk 0:01:42.6]}
15... Qc6 {[%clk 0:01:55.6]} 16. Ra4 {[%clk 0:01:28.5]} 16... Rac8 {[%clk
0:01:26.8]} 17. b3 {[%clk 0:01:26.7]} 17... Rfd8 {[%clk 0:01:13.4]} 18. f3
{[%clk 0:01:24.8]} 18... Rd4 {[%clk 0:01:05.3]} 19. Bxd4 {[%clk 0:01:17]} 19...
exd4 {[%clk 0:01:05.5]} 20. Nb1 {[%clk 0:01:07.8]} 20... e5 {[%clk 0:01:00.5]}
21. Nd2 {[%clk 0:01:06.8]} 21... Nh5 {[%clk 0:00:58.7]} 22. g3 {[%clk
0:01:06.2]} 22... Qg6 {[%clk 0:00:51]} 23. Qg2 {[%clk 0:00:57]} 23... Bg5 {[%clk
0:00:42.7]} 24. Nc4 {[%clk 0:00:55.4]} 24... Re8 {[%clk 0:00:38.5]} 25. Raa1
{[%clk 0:00:52.9]} 25... Bf6 {[%clk 0:00:27.7]} 26. Kh1 {[%clk 0:00:47.9]} 26...
Rd8 {[%clk 0:00:22.2]} 27. Rad1 {[%clk 0:00:45.5]} 27... Qf7 {[%clk 0:00:21.6]}
28. f4 {[%clk 0:00:42.8]} 28... exf4 {[%clk 0:00:16.7]} 29. gxf4 {[%clk
0:00:40.2]} 29... Be7 {[%clk 0:00:15.7]} 30. f5 {[%clk 0:00:37]} 30... Nf6
{[%clk 0:00:14.9]} 31. Rde1 {[%clk 0:00:35]} 31... Qh5 {[%clk 0:00:10.9]} 32.
Rg1 {[%clk 0:00:31.9]} 32... Bf8 {[%clk 0:00:08.8]} 33. e5 {[%clk 0:00:29.5]}
33... Nd5 {[%clk 0:00:09]} 34. Re4 {[%clk 0:00:25.8]} 1-0

[Event "*** Titled Tuesday Blitz"]
[Site "Chess.com"]
[Date "2020.03.03"]
[Round "1"]
[White "boasovietica"]
[Black "rasmussvane"]
[Result "0-1"]
[WhiteElo "2499"]
[BlackElo "2878"]
[TimeControl "180+1"]
[EndTime "9:07:18 PST"]
[Termination "rasmussvane won on time"]

1. Nf3 {[%clk 0:02:57.2]} 1... d5 {[%clk 0:02:58.5]} 2. e3 {[%clk 0:02:57]} 2...
Nf6 {[%clk 0:02:58]} 3. c4 {[%clk 0:02:57.1]} 3... e6 {[%clk 0:02:57.9]} 4. Nc3
{[%clk 0:02:56.3]} 4... dxc4 {[%clk 0:02:55.6]} 5. Bxc4 {[%clk 0:02:54.9]} 5...
a6 {[%clk 0:02:56.1]} 6. a4 {[%clk 0:02:45.3]} 6... c5 {[%clk 0:02:55.5]} 7. O-O
{[%clk 0:02:43.6]} 7... b6 {[%clk 0:02:55.5]} 8. d4 {[%clk 0:02:43.3]} 8... Bb7
{[%clk 0:02:55.5]} 9. b3 {[%clk 0:02:42.5]} 9... Be7 {[%clk 0:02:52.5]} 10. Bb2
{[%clk 0:02:42.5]} 10... O-O {[%clk 0:02:51.8]} 11. Qe2 {[%clk 0:02:35.8]} 11...
Nbd7 {[%clk 0:02:49.2]} 12. Rfd1 {[%clk 0:02:34.6]} 12... Qc7 {[%clk 0:02:47.1]}
13. Rac1 {[%clk 0:02:32]} 13... Rfd8 {[%clk 0:02:39.1]} 14. Bd3 {[%clk
0:01:53.5]} 14... h6 {[%clk 0:02:33]} 15. e4 {[%clk 0:01:47.2]} 15... Qf4 {[%clk
0:02:31.6]} 16. Qe3 {[%clk 0:01:30.4]} 16... Qxe3 {[%clk 0:02:13]} 17. fxe3
{[%clk 0:01:30.9]} 17... Rac8 {[%clk 0:02:13.9]} 18. h3 {[%clk 0:01:20.5]} 18...
Rc7 {[%clk 0:01:28.6]} 19. e5 {[%clk 0:01:14.8]} 19... Nd5 {[%clk 0:01:23.5]}
20. Nxd5 {[%clk 0:01:12.4]} 20... Bxd5 {[%clk 0:01:24.4]} 21. Bc4 {[%clk
0:01:10.5]} 21... Bxc4 {[%clk 0:01:20.8]} 22. Rxc4 {[%clk 0:01:08.2]} 22... Rdc8
{[%clk 0:01:16.3]} 23. Rdc1 {[%clk 0:01:08.2]} 23... b5 {[%clk 0:01:07.4]} 24.
axb5 {[%clk 0:01:05.8]} 24... axb5 {[%clk 0:01:08.3]} 25. R4c2 {[%clk 0:01:05]}
25... c4 {[%clk 0:01:08.9]} 26. bxc4 {[%clk 0:01:02.4]} 26... bxc4 {[%clk
0:01:09.2]} 27. Nd2 {[%clk 0:01:01.5]} 27... Nb6 {[%clk 0:01:08.1]} 28. Bc3
{[%clk 0:00:59.1]} 28... Nd5 {[%clk 0:01:03.7]} 29. Ba5 {[%clk 0:00:58.9]} 29...
Ra7 {[%clk 0:00:46]} 30. Rxc4 {[%clk 0:00:50.8]} 30... Rf8 {[%clk 0:00:45.2]}
31. Nb3 {[%clk 0:00:38.1]} 31... Bg5 {[%clk 0:00:40.9]} 32. Bd2 {[%clk
0:00:28.9]} 32... Ra3 {[%clk 0:00:39.2]} 33. Nc5 {[%clk 0:00:18.4]} 33... Nxe3
{[%clk 0:00:39.4]} 34. R4c3 {[%clk 0:00:17.3]} 34... Rxc3 {[%clk 0:00:36.7]} 35.
Rxc3 {[%clk 0:00:16.7]} 35... Nd5 {[%clk 0:00:37.1]} 36. Rd3 {[%clk 0:00:17]}
36... Bxd2 {[%clk 0:00:35.4]} 37. Rxd2 {[%clk 0:00:17.9]} 37... Ra8 {[%clk
0:00:36]} 38. Ne4 {[%clk 0:00:18.1]} 38... Ra1+ {[%clk 0:00:32.3]} 39. Kh2
{[%clk 0:00:17.6]} 39... Ne3 {[%clk 0:00:32.5]} 40. Re2 {[%clk 0:00:02.2]} 40...
Nf1+ {[%clk 0:00:32.5]} 0-1